[Event "*** Qualifier 3: Titled Tuesday 3|2 Blitz"]
[Site "Chess.com"]
[Date "2017.04.18"]
[Round "4"]
[White "GMSAGOR"]
[Black "Jamaladam12200620"]
[Result "1-0"]
[WhiteElo "2078"]
[BlackElo "1975"]
[TimeControl "180+2"]
[EndTime "13:54:14 PDT"]
[Termination "GMSAGOR won on time"]

1. e4 {[%clk 0:03:02]} 1... Nf6 {[%clk 0:01:56.3]} 2. e5 {[%clk 0:03:01.4]} 2...
Nd5 {[%clk 0:01:57.1]} 3. Nc3 {[%clk 0:03:02]} 3... Nxc3 {[%clk 0:01:57.4]} 4.
bxc3 {[%clk 0:03:03.9]} 4... g6 {[%clk 0:01:57.5]} 5. d4 {[%clk 0:03:02.8]} 5...
Bg7 {[%clk 0:01:58.7]} 6. f4 {[%clk 0:03:01.1]} 6... c5 {[%clk 0:01:58.9]} 7. d5
{[%clk 0:03:00.2]} 7... Qa5 {[%clk 0:01:58.8]} 8. Nf3 {[%clk 0:02:51.9]} 8...
Qxc3+ {[%clk 0:01:48.9]} 9. Bd2 {[%clk 0:02:48.7]} 9... Qa3 {[%clk 0:01:48.7]}
10. Bc4 {[%clk 0:02:37.5]} 10... O-O {[%clk 0:01:48.7]} 11. O-O {[%clk
0:02:35.7]} 11... d6 {[%clk 0:01:42.8]} 12. h3 {[%clk 0:02:34.6]} 12... Qa4
{[%clk 0:01:40.7]} 13. Bb3 {[%clk 0:02:28.4]} 13... Qd7 {[%clk 0:01:38.8]} 14.
a4 {[%clk 0:02:16.2]} 14... Na6 {[%clk 0:01:30.2]} 15. Qe2 {[%clk 0:02:12.9]}
15... Nc7 {[%clk 0:01:26.9]} 16. Rad1 {[%clk 0:02:11.4]} 16... b6 {[%clk
0:01:20.4]} 17. c4 {[%clk 0:02:09]} 17... a6 {[%clk 0:01:17.9]} 18. Bc3 {[%clk
0:01:53.9]} 18... b5 {[%clk 0:01:16.8]} 19. Rfe1 {[%clk 0:01:45.5]} 19... bxa4
{[%clk 0:01:13.6]} 20. Bc2 {[%clk 0:01:46.3]} 20... Rb8 {[%clk 0:01:12.3]} 21.
Ra1 {[%clk 0:01:46.2]} 21... Qd8 {[%clk 0:01:06]} 22. Rxa4 {[%clk 0:01:43.3]}
22... Bd7 {[%clk 0:01:06]} 23. Ra2 {[%clk 0:01:43.9]} 23... Ra8 {[%clk
0:00:43.7]} 24. Ba5 {[%clk 0:01:43]} 24... Qc8 {[%clk 0:00:43.8]} 25. Rb1 {[%clk
0:01:38.1]} 25... Ne8 {[%clk 0:00:43.1]} 26. Rab2 {[%clk 0:01:36.3]} 26... Bf5
{[%clk 0:00:42.7]} 27. Rb7 {[%clk 0:01:19]} 27... Bxc2 {[%clk 0:00:42.7]} 28.
Qxc2 {[%clk 0:01:20.9]} 28... e6 {[%clk 0:00:38.7]} 29. Qe4 {[%clk 0:01:09.6]}
29... exd5 {[%clk 0:00:35.3]} 30. Qxd5 {[%clk 0:01:09.9]} 30... Qe6 {[%clk
0:00:36.7]} 31. Qd3 {[%clk 0:01:05.8]} 31... dxe5 {[%clk 0:00:36.3]} 32. fxe5
{[%clk 0:01:05.1]} 32... Bxe5 {[%clk 0:00:36.8]} 33. Nxe5 {[%clk 0:01:02.7]}
33... Qxe5 {[%clk 0:00:37.3]} 34. Bc3 {[%clk 0:01:04.1]} 34... Qd6 {[%clk
0:00:32.4]} 35. Qf3 {[%clk 0:01:00.7]} 35... Qe6 {[%clk 0:00:28.8]} 36. Re1
{[%clk 0:00:46.7]} 36... Qf5 {[%clk 0:00:28.5]} 37. Qg3 {[%clk 0:00:38.2]} 37...
Nf6 {[%clk 0:00:22.3]} 38. Rf1 {[%clk 0:00:38.2]} 38... Nh5 {[%clk 0:00:22]} 39.
Qh4 {[%clk 0:00:23.9]} 39... Qd3 {[%clk 0:00:21.8]} 40. Rf3 {[%clk 0:00:25.1]}
40... Qd1+ {[%clk 0:00:20.5]} 41. Kh2 {[%clk 0:00:26.7]} 41... Qd6+ {[%clk
0:00:19.8]} 42. Kg1 {[%clk 0:00:27.7]} 42... Qd1+ {[%clk 0:00:19.8]} 43. Rf1
{[%clk 0:00:28.8]} 43... Qd3 {[%clk 0:00:19.7]} 44. Ba1 {[%clk 0:00:23.4]} 44...
Rae8 {[%clk 0:00:15.6]} 45. Rb2 {[%clk 0:00:22.5]} 45... Re4 {[%clk 0:00:12.3]}
46. Qg5 {[%clk 0:00:21.8]} 46... Qe3+ {[%clk 0:00:12]} 47. Qxe3 {[%clk
0:00:21.2]} 47... Rxe3 {[%clk 0:00:12.9]} 48. Ra2 {[%clk 0:00:20.6]} 48... Ng3
{[%clk 0:00:11.7]} 49. Rd1 {[%clk 0:00:19.3]} 49... Nf5 {[%clk 0:00:11.4]} 50.
Rxa6 {[%clk 0:00:19.5]} 50... Re4 {[%clk 0:00:10.6]} 51. Rc1 {[%clk 0:00:19.3]}
51... Ne3 {[%clk 0:00:10.5]} 52. Rc6 {[%clk 0:00:20.3]} 52... Rxc4 {[%clk
0:00:08.9]} 53. Rxc4 {[%clk 0:00:20.6]} 53... Nxc4 {[%clk 0:00:09.8]} 54. Rxc5
{[%clk 0:00:22.2]} 54... Nd6 {[%clk 0:00:09.1]} 55. Rc6 {[%clk 0:00:19.6]} 55...
Ne4 {[%clk 0:00:09]} 56. g4 {[%clk 0:00:17.7]} 56... Re8 {[%clk 0:00:08.8]} 57.
Bd4 {[%clk 0:00:18.1]} 57... h6 {[%clk 0:00:08.4]} 58. Kg2 {[%clk 0:00:19.1]}
1-0

[Event "*** Qualifier 3: Titled Tuesday 3|2 Blitz"]
[Site "Chess.com"]
[Date "2017.04.18"]
[Round "4"]
[White "penguingm1"]
[Black "Iball95"]
[Result "1/2-1/2"]
[WhiteElo "2564"]
[BlackElo "2537"]
[TimeControl "180+2"]
[EndTime "13:55:19 PDT"]
[Termination "Game drawn - insufficient material"]

1. d4 {[%clk 0:03:02]} 1... Nf6 {[%clk 0:03:00.1]} 2. c4 {[%clk 0:03:03.2]} 2...
e6 {[%clk 0:03:01.4]} 3. Nc3 {[%clk 0:03:02.9]} 3... Bb4 {[%clk 0:03:02.8]} 4.
Qc2 {[%clk 0:03:03.7]} 4... O-O {[%clk 0:03:03.4]} 5. Nf3 {[%clk 0:03:03.3]}
5... c5 {[%clk 0:03:02.6]} 6. dxc5 {[%clk 0:03:04.1]} 6... Na6 {[%clk 0:03:03]}
7. g3 {[%clk 0:03:05.1]} 7... Nxc5 {[%clk 0:03:01.7]} 8. Bg2 {[%clk 0:03:05.9]}
8... b6 {[%clk 0:03:02.4]} 9. O-O {[%clk 0:03:06.6]} 9... Bb7 {[%clk 0:03:00.9]}
10. Nb5 {[%clk 0:03:07.2]} 10... Be4 {[%clk 0:02:58.9]} 11. Qd1 {[%clk
0:03:04.5]} 11... Nb7 {[%clk 0:02:51.2]} 12. Bf4 {[%clk 0:03:02]} 12... d5
{[%clk 0:02:31.1]} 13. a3 {[%clk 0:02:51.1]} 13... Be7 {[%clk 0:02:28]} 14. Nc3
{[%clk 0:02:52.3]} 14... Rc8 {[%clk 0:01:54.5]} 15. cxd5 {[%clk 0:02:08.3]}
15... Bxd5 {[%clk 0:01:49.8]} 16. Nxd5 {[%clk 0:02:06.3]} 16... Nxd5 {[%clk
0:01:51.7]} 17. Ne5 {[%clk 0:02:03.2]} 17... Nxf4 {[%clk 0:01:29.2]} 18. gxf4
{[%clk 0:01:42.5]} 18... Nd6 {[%clk 0:01:11.8]} 19. Qa4 {[%clk 0:01:26.9]} 19...
Qc7 {[%clk 0:00:56.5]} 20. Nc6 {[%clk 0:01:14]} 20... Bf6 {[%clk 0:00:54.4]} 21.
Nxa7 {[%clk 0:00:22.6]} 21... Rcd8 {[%clk 0:00:16.4]} 22. Rac1 {[%clk 0:00:22]}
22... Qd7 {[%clk 0:00:15.8]} 23. Bc6 {[%clk 0:00:18.7]} 23... Qe7 {[%clk
0:00:16.5]} 24. Rc2 {[%clk 0:00:20.1]} 24... Nf5 {[%clk 0:00:17]} 25. e3 {[%clk
0:00:21.6]} 25... Rd6 {[%clk 0:00:14.6]} 26. Be4 {[%clk 0:00:21.8]} 26... Nh4
{[%clk 0:00:14.7]} 27. Nc6 {[%clk 0:00:22.7]} 27... Qd7 {[%clk 0:00:16.2]} 28.
Qb5 {[%clk 0:00:23.4]} 28... e5 {[%clk 0:00:17.3]} 29. f5 {[%clk 0:00:11.1]}
29... Nxf5 {[%clk 0:00:16.3]} 30. Qe2 {[%clk 0:00:11.8]} 30... Nh4 {[%clk
0:00:16.3]} 31. Kh1 {[%clk 0:00:13.2]} 31... Qh3 {[%clk 0:00:16.7]} 32. Rg1
{[%clk 0:00:14.2]} 32... g6 {[%clk 0:00:18]} 33. Rg3 {[%clk 0:00:15.2]} 33...
Qe6 {[%clk 0:00:19.3]} 34. Rg4 {[%clk 0:00:11.1]} 34... Nf5 {[%clk 0:00:16.9]}
35. Rg1 {[%clk 0:00:11.7]} 35... Bg7 {[%clk 0:00:17.6]} 36. Qf3 {[%clk
0:00:12.6]} 36... Ne7 {[%clk 0:00:14.3]} 37. Nxe7+ {[%clk 0:00:08.2]} 37... Qxe7
{[%clk 0:00:16.2]} 38. Bd5 {[%clk 0:00:09.9]} 38... Kh8 {[%clk 0:00:16.6]} 39.
e4 {[%clk 0:00:11.4]} 39... f5 {[%clk 0:00:17.6]} 40. exf5 {[%clk 0:00:10.5]}
40... Rxf5 {[%clk 0:00:17.3]} 41. Qb3 {[%clk 0:00:09]} 41... Rf8 {[%clk
0:00:16.5]} 42. f3 {[%clk 0:00:09.9]} 42... Qd7 {[%clk 0:00:16.2]} 43. Be4
{[%clk 0:00:10.5]} 43... Bh6 {[%clk 0:00:14.3]} 44. Rcg2 {[%clk 0:00:10.7]}
44... Bf4 {[%clk 0:00:15.2]} 45. Qc3 {[%clk 0:00:10.3]} 45... Rd8 {[%clk
0:00:15.5]} 46. Rg4 {[%clk 0:00:10.3]} 46... Kg8 {[%clk 0:00:16.3]} 47. R4g2
{[%clk 0:00:09.4]} 47... Rd2 {[%clk 0:00:15.5]} 48. Qc4+ {[%clk 0:00:09.8]}
48... Kg7 {[%clk 0:00:15.9]} 49. Qf1 {[%clk 0:00:07.5]} 49... Qe6 {[%clk
0:00:12.6]} 50. Qe1 {[%clk 0:00:06.8]} 50... Rxg2 {[%clk 0:00:12.1]} 51. Rxg2
{[%clk 0:00:08.7]} 51... Rd4 {[%clk 0:00:13]} 52. Re2 {[%clk 0:00:06.2]} 52...
Qd7 {[%clk 0:00:14.1]} 53. Qh4 {[%clk 0:00:04.8]} 53... Rd1+ {[%clk 0:00:14.6]}
54. Kg2 {[%clk 0:00:06.3]} 54... Qd4 {[%clk 0:00:15.8]} 55. Qf2 {[%clk
0:00:07.2]} 55... Qd6 {[%clk 0:00:17.1]} 56. Qh4 {[%clk 0:00:08]} 56... Qd4
{[%clk 0:00:17]} 57. Qf2 {[%clk 0:00:05.3]} 57... Qd8 {[%clk 0:00:18.5]} 58. Rc2
{[%clk 0:00:05.9]} 58... Qg5+ {[%clk 0:00:19.3]} 59. Kh3 {[%clk 0:00:07.5]}
59... Rg1 {[%clk 0:00:18.9]} 60. Rc7+ {[%clk 0:00:08.2]} 60... Kh6 {[%clk
0:00:20.2]} 61. Rb7 {[%clk 0:00:07.1]} 61... Rh1 {[%clk 0:00:17.4]} 62. Qh4+
{[%clk 0:00:05.3]} 62... Qxh4+ {[%clk 0:00:18.6]} 63. Kxh4 {[%clk 0:00:07.2]}
63... Rxh2+ {[%clk 0:00:20.5]} 64. Kg4 {[%clk 0:00:08.8]} 64... Rg2+ {[%clk
0:00:21.6]} 65. Kh3 {[%clk 0:00:09.8]} 65... Rxb2 {[%clk 0:00:22.2]} 66. a4
{[%clk 0:00:10.9]} 66... Rh2+ {[%clk 0:00:22.7]} 67. Kg4 {[%clk 0:00:11.8]}
67... Rg2+ {[%clk 0:00:24.1]} 68. Kh3 {[%clk 0:00:13.3]} 68... Rg3+ {[%clk
0:00:25.5]} 69. Kh2 {[%clk 0:00:13.5]} 69... Rxf3+ {[%clk 0:00:26.9]} 70. Kg1
{[%clk 0:00:14.2]} 70... Rg3+ {[%clk 0:00:28]} 71. Kf1 {[%clk 0:00:15.4]} 71...
Re3 {[%clk 0:00:29.6]} 72. Bd5 {[%clk 0:00:16.7]} 72... Kg5 {[%clk 0:00:24.3]}
73. Rxh7 {[%clk 0:00:17.2]} 73... Rd3 {[%clk 0:00:24.3]} 74. Bc6 {[%clk
0:00:18.4]} 74... Rd6 {[%clk 0:00:25.4]} 75. Bb5 {[%clk 0:00:19.3]} 75... e4
{[%clk 0:00:26.4]} 76. Ke2 {[%clk 0:00:20.5]} 76... e3 {[%clk 0:00:27.7]} 77.
Bd3 {[%clk 0:00:21.9]} 77... Rd4 {[%clk 0:00:26.4]} 78. Rg7 {[%clk 0:00:22.3]}
78... Rxa4 {[%clk 0:00:24.5]} 79. Rxg6+ {[%clk 0:00:23.4]} 79... Kh4 {[%clk
0:00:25.8]} 80. Rxb6 {[%clk 0:00:22.4]} 80... Ra2+ {[%clk 0:00:26.9]} 81. Kf3
{[%clk 0:00:23.3]} 81... Rf2+ {[%clk 0:00:27.2]} 82. Ke4 {[%clk 0:00:24.6]}
82... Bg5 {[%clk 0:00:26.6]} 83. Rb1 {[%clk 0:00:23.1]} 83... Rf4+ {[%clk
0:00:22.5]} 84. Kxe3 {[%clk 0:00:21.6]} 84... Rb4+ {[%clk 0:00:21.5]} 85. Ke2
{[%clk 0:00:22.7]} 85... Rxb1 {[%clk 0:00:23.4]} 86. Bxb1 {[%clk 0:00:24.6]}
86... Be3 {[%clk 0:00:24.2]} 87. Kxe3 {[%clk 0:00:24.5]} 1/2-1/2

[Event "*** Qualifier 3: Titled Tuesday 3|2 Blitz"]
[Site "Chess.com"]
[Date "2017.04.18"]
[Round "4"]
[White "Astaneh"]
[Black "MITerryble"]
[Result "1/2-1/2"]
[WhiteElo "2506"]
[BlackElo "2643"]
[TimeControl "180+2"]
[EndTime "13:55:20 PDT"]
[Termination "Game drawn - insufficient material"]

1. d4 {[%clk 0:03:02]} 1... e6 {[%clk 0:03:01.2]} 2. c4 {[%clk 0:02:57.8]} 2...
Bb4+ {[%clk 0:03:01.6]} 3. Nd2 {[%clk 0:02:57.7]} 3... Nf6 {[%clk 0:03:02.1]} 4.
a3 {[%clk 0:02:57.7]} 4... Be7 {[%clk 0:03:03.1]} 5. e4 {[%clk 0:02:58.3]} 5...
d6 {[%clk 0:03:04.4]} 6. e5 {[%clk 0:02:41.4]} 6... Nfd7 {[%clk 0:02:59]} 7.
exd6 {[%clk 0:02:23.4]} 7... cxd6 {[%clk 0:03:00.9]} 8. Ngf3 {[%clk 0:02:24.2]}
8... O-O {[%clk 0:03:00]} 9. Bd3 {[%clk 0:02:17.3]} 9... e5 {[%clk 0:03:01]} 10.
O-O {[%clk 0:02:18.3]} 10... f5 {[%clk 0:02:53.2]} 11. dxe5 {[%clk 0:02:11.5]}
11... dxe5 {[%clk 0:02:55.1]} 12. Bc2 {[%clk 0:02:12.6]} 12... e4 {[%clk
0:02:45.9]} 13. Nd4 {[%clk 0:02:13.8]} 13... Ne5 {[%clk 0:02:47]} 14. Nb1 {[%clk
0:02:07.3]} 14... Nbc6 {[%clk 0:02:33.2]} 15. Nxc6 {[%clk 0:01:59.8]} 15... bxc6
{[%clk 0:02:35.1]} 16. Qe2 {[%clk 0:01:50.6]} 16... Be6 {[%clk 0:02:29.1]} 17.
b3 {[%clk 0:01:49.1]} 17... Bf6 {[%clk 0:02:29.6]} 18. Ra2 {[%clk 0:01:48.3]}
18... a5 {[%clk 0:02:16.2]} 19. Rd1 {[%clk 0:01:47.6]} 19... Qe7 {[%clk
0:02:08.3]} 20. a4 {[%clk 0:01:48.9]} 20... Rfd8 {[%clk 0:02:08]} 21. Ba3 {[%clk
0:01:47.6]} 21... Qa7 {[%clk 0:02:01.7]} 22. Nd2 {[%clk 0:01:42.3]} 22... Nd3
{[%clk 0:01:50.9]} 23. Nxe4 {[%clk 0:01:32.6]} 23... fxe4 {[%clk 0:01:08.9]} 24.
Bxd3 {[%clk 0:01:32.6]} 24... Bf5 {[%clk 0:01:04.7]} 25. Bc2 {[%clk 0:01:04.2]}
25... Rxd1+ {[%clk 0:01:06.6]} 26. Bxd1 {[%clk 0:01:05.3]} 26... Re8 {[%clk
0:00:51.9]} 27. c5 {[%clk 0:00:55.4]} 27... h6 {[%clk 0:00:32]} 28. Rd2 {[%clk
0:00:42.2]} 28... Kh7 {[%clk 0:00:33]} 29. Rd6 {[%clk 0:00:42.6]} 29... Qb7
{[%clk 0:00:22.9]} 30. Bc2 {[%clk 0:00:33.6]} 30... Bg6 {[%clk 0:00:23.8]} 31.
Bc1 {[%clk 0:00:18.3]} 31... Be5 {[%clk 0:00:19.7]} 32. Rxg6 {[%clk 0:00:18.4]}
32... Kxg6 {[%clk 0:00:19.7]} 33. Qxe4+ {[%clk 0:00:20]} 33... Kf7 {[%clk
0:00:19.7]} 34. Qc4+ {[%clk 0:00:16.8]} 34... Kf8 {[%clk 0:00:18.8]} 35. g3
{[%clk 0:00:14.9]} 35... Bf6 {[%clk 0:00:17.6]} 36. Be4 {[%clk 0:00:15.6]} 36...
Qb4 {[%clk 0:00:13.3]} 37. Qxb4 {[%clk 0:00:10.7]} 37... axb4 {[%clk 0:00:15.2]}
38. f3 {[%clk 0:00:11.5]} 38... Bd4+ {[%clk 0:00:15.4]} 39. Kf1 {[%clk
0:00:12.9]} 39... Bxc5 {[%clk 0:00:17]} 40. Bxc6 {[%clk 0:00:14.5]} 40... Rc8
{[%clk 0:00:15.6]} 41. Bd5 {[%clk 0:00:15.1]} 41... Ke7 {[%clk 0:00:09.6]} 42.
Bf4 {[%clk 0:00:16.4]} 42... Rd8 {[%clk 0:00:10.2]} 43. Bc4 {[%clk 0:00:17.1]}
43... Rd1+ {[%clk 0:00:10.1]} 44. Ke2 {[%clk 0:00:17.6]} 44... Rh1 {[%clk
0:00:09.3]} 45. h4 {[%clk 0:00:18.9]} 45... Ra1 {[%clk 0:00:06.8]} 46. Kd3
{[%clk 0:00:19.3]} 46... Kf6 {[%clk 0:00:06.7]} 47. Ke4 {[%clk 0:00:19.8]} 47...
Rd1 {[%clk 0:00:07.6]} 48. Be5+ {[%clk 0:00:20.5]} 48... Kg6 {[%clk 0:00:07.4]}
49. a5 {[%clk 0:00:20.9]} 49... Bf2 {[%clk 0:00:04.6]} 50. a6 {[%clk 0:00:20.6]}
50... Kh7 {[%clk 0:00:03.1]} 51. h5 {[%clk 0:00:21.2]} 51... g6 {[%clk 0:00:04]}
52. hxg6+ {[%clk 0:00:20.6]} 52... Kxg6 {[%clk 0:00:05.9]} 53. g4 {[%clk
0:00:22.5]} 53... Kg5 {[%clk 0:00:06.7]} 54. Be6 {[%clk 0:00:20.8]} 54... Kg6
{[%clk 0:00:06.7]} 55. f4 {[%clk 0:00:21.6]} 55... Rd2 {[%clk 0:00:06.1]} 56.
Bb8 {[%clk 0:00:17.5]} 56... Re2+ {[%clk 0:00:03.5]} 57. Kd5 {[%clk 0:00:18.1]}
57... Ra2 {[%clk 0:00:05.4]} 58. Bc8 {[%clk 0:00:18.6]} 58... Be3 {[%clk
0:00:04.2]} 59. Kc4 {[%clk 0:00:15.9]} 59... Rc2+ {[%clk 0:00:04.9]} 60. Kxb4
{[%clk 0:00:05.9]} 60... Rxc8 {[%clk 0:00:06.8]} 61. a7 {[%clk 0:00:07.7]} 61...
Bxa7 {[%clk 0:00:07.1]} 62. Bxa7 {[%clk 0:00:09.6]} 62... Rc2 {[%clk 0:00:07.3]}
63. Be3 {[%clk 0:00:09.6]} 63... Rg2 {[%clk 0:00:08.2]} 64. Kc5 {[%clk
0:00:04.3]} 64... Rxg4 {[%clk 0:00:09.1]} 65. b4 {[%clk 0:00:06.2]} 65... Rg3
{[%clk 0:00:08.7]} 66. f5+ {[%clk 0:00:07.7]} 66... Kg7 {[%clk 0:00:09.1]} 67.
Bd4+ {[%clk 0:00:08.6]} 67... Kf7 {[%clk 0:00:10.1]} 68. b5 {[%clk 0:00:10.5]}
68... Rf3 {[%clk 0:00:05.6]} 69. b6 {[%clk 0:00:09.9]} 69... Rxf5+ {[%clk
0:00:06.7]} 70. Kc6 {[%clk 0:00:11.8]} 70... Rg5 {[%clk 0:00:06]} 71. b7 {[%clk
0:00:05.3]} 71... Rg8 {[%clk 0:00:06.7]} 72. Be5 {[%clk 0:00:04.1]} 72... Ke6
{[%clk 0:00:07.8]} 73. b8=Q {[%clk 0:00:06]} 73... Rxb8 {[%clk 0:00:08.1]} 74.
Bxb8 {[%clk 0:00:07.9]} 74... h5 {[%clk 0:00:09.5]} 75. Bh2 {[%clk 0:00:09.7]}
75... h4 {[%clk 0:00:11.2]} 76. Bb8 {[%clk 0:00:11.6]} 76... Kf5 {[%clk
0:00:12.9]} 77. Bh2 {[%clk 0:00:13.5]} 77... Ke4 {[%clk 0:00:14.8]} 78. Bb8
{[%clk 0:00:15.2]} 78... Kf3 {[%clk 0:00:16.7]} 79. Bc7 {[%clk 0:00:16.9]} 79...
h3 {[%clk 0:00:18.6]} 80. Bb8 {[%clk 0:00:18.8]} 80... Kg2 {[%clk 0:00:20.5]}
81. Bc7 {[%clk 0:00:20.2]} 81... h2 {[%clk 0:00:22.4]} 82. Bxh2 {[%clk
0:00:21.3]} 1/2-1/2

[Event "*** Qualifier 3: Titled Tuesday 3|2 Blitz"]
[Site "Chess.com"]
[Date "2017.04.18"]
[Round "4"]
[White "kikydu96"]
[Black "roldieyi"]
[Result "1-0"]
[WhiteElo "2357"]
[BlackElo "2223"]
[TimeControl "180+2"]
[EndTime "13:55:40 PDT"]
[Termination "kikydu96 won by checkmate"]

1. e4 {[%clk 0:03:02]} 1... c6 {[%clk 0:02:59.1]} 2. d4 {[%clk 0:03:02.5]} 2...
d5 {[%clk 0:02:59.7]} 3. Nc3 {[%clk 0:03:00.2]} 3... dxe4 {[%clk 0:03:00.5]} 4.
Nxe4 {[%clk 0:03:02.1]} 4... Nf6 {[%clk 0:03:02.3]} 5. Nxf6+ {[%clk 0:03:03.2]}
5... exf6 {[%clk 0:03:03.6]} 6. c3 {[%clk 0:03:01.6]} 6... Bd6 {[%clk
0:03:05.4]} 7. Bd3 {[%clk 0:02:58.1]} 7... O-O {[%clk 0:03:06]} 8. Ne2 {[%clk
0:02:59.7]} 8... Re8 {[%clk 0:03:01.4]} 9. O-O {[%clk 0:03:00.1]} 9... Nd7
{[%clk 0:03:02.3]} 10. Be3 {[%clk 0:02:57.8]} 10... Qc7 {[%clk 0:03:02.9]} 11.
Ng3 {[%clk 0:02:57.6]} 11... Nf8 {[%clk 0:03:03.4]} 12. Qd2 {[%clk 0:02:48.1]}
12... g5 {[%clk 0:02:51.9]} 13. Rae1 {[%clk 0:02:38.3]} 13... Ng6 {[%clk
0:02:49.7]} 14. Kh1 {[%clk 0:02:35.1]} 14... Bg4 {[%clk 0:02:38.7]} 15. h3
{[%clk 0:02:19.3]} 15... Bxg3 {[%clk 0:02:32.5]} 16. fxg3 {[%clk 0:02:15.3]}
16... Qxg3 {[%clk 0:02:23.1]} 17. hxg4 {[%clk 0:02:10.8]} 17... Nh4 {[%clk
0:01:50.5]} 18. Qf2 {[%clk 0:00:49]} 18... Qxg4 {[%clk 0:01:48.7]} 19. Bf5
{[%clk 0:00:43.3]} 19... Qh5 {[%clk 0:01:40.9]} 20. g4 {[%clk 0:00:42.7]} 20...
Qh6 {[%clk 0:01:41.1]} 21. Qh2 {[%clk 0:00:43.5]} 21... Re7 {[%clk 0:01:32.1]}
22. Bd2 {[%clk 0:00:40]} 22... Rae8 {[%clk 0:01:30.3]} 23. Rxe7 {[%clk
0:00:40.3]} 23... Rxe7 {[%clk 0:01:31.3]} 24. Re1 {[%clk 0:00:35.9]} 24... Rxe1+
{[%clk 0:01:23]} 25. Bxe1 {[%clk 0:00:36.2]} 25... Kg7 {[%clk 0:01:20.9]} 26.
Bxh4 {[%clk 0:00:27.5]} 26... gxh4 {[%clk 0:01:21.3]} 27. Qf2 {[%clk 0:00:28.7]}
27... Qg5 {[%clk 0:01:11.8]} 28. Kh2 {[%clk 0:00:29.4]} 28... h5 {[%clk
0:01:11.8]} 29. Kh3 {[%clk 0:00:25.5]} 29... hxg4+ {[%clk 0:01:08.8]} 30. Bxg4
{[%clk 0:00:25.7]} 30... Qc1 {[%clk 0:01:05.9]} 31. Bf3 {[%clk 0:00:21.1]} 31...
Kf8 {[%clk 0:00:57.3]} 32. Kxh4 {[%clk 0:00:21.5]} 32... Qb1 {[%clk 0:00:56]}
33. a3 {[%clk 0:00:21.9]} 33... Qg6 {[%clk 0:00:56]} 34. Kh3 {[%clk 0:00:22.1]}
34... Qg5 {[%clk 0:00:55.5]} 35. Bg4 {[%clk 0:00:21.9]} 35... Ke7 {[%clk
0:00:50.9]} 36. Kg3 {[%clk 0:00:21.8]} 36... b6 {[%clk 0:00:46.2]} 37. Qe2+
{[%clk 0:00:22.4]} 37... Kf8 {[%clk 0:00:45.9]} 38. Qe4 {[%clk 0:00:23]} 38...
Qc1 {[%clk 0:00:42.9]} 39. Qe2 {[%clk 0:00:22.8]} 39... Qg5 {[%clk 0:00:42.1]}
40. Kf2 {[%clk 0:00:21.8]} 40... f5 {[%clk 0:00:38]} 41. Bf3 {[%clk 0:00:22.9]}
41... Qh4+ {[%clk 0:00:37.9]} 42. Ke3 {[%clk 0:00:22.9]} 42... Qg3 {[%clk
0:00:34]} 43. Kd2 {[%clk 0:00:23.1]} 43... Qf4+ {[%clk 0:00:32.2]} 44. Kc2
{[%clk 0:00:23.5]} 44... c5 {[%clk 0:00:28.9]} 45. dxc5 {[%clk 0:00:23.6]} 45...
bxc5 {[%clk 0:00:29.2]} 46. Bd5 {[%clk 0:00:25]} 46... Qd6 {[%clk 0:00:24.9]}
47. Qc4 {[%clk 0:00:21.8]} 47... f4 {[%clk 0:00:17.4]} 48. Qe4 {[%clk
0:00:19.5]} 48... Kg7 {[%clk 0:00:14.1]} 49. Qf5 {[%clk 0:00:20.2]} 49... f6
{[%clk 0:00:08]} 50. Be4 {[%clk 0:00:21]} 50... Kf8 {[%clk 0:00:03.4]} 51. Bd5
{[%clk 0:00:19.4]} 51... Kg7 {[%clk 0:00:03.2]} 52. Qe6 {[%clk 0:00:20.3]} 52...
Qe5 {[%clk 0:00:02.9]} 53. Qxe5 {[%clk 0:00:20.9]} 53... fxe5 {[%clk 0:00:04.2]}
54. Kd3 {[%clk 0:00:22.6]} 54... Kf6 {[%clk 0:00:05.1]} 55. Ke4 {[%clk
0:00:24.2]} 55... Kg5 {[%clk 0:00:06]} 56. Kf3 {[%clk 0:00:23.9]} 56... Kf5
{[%clk 0:00:06.6]} 57. b4 {[%clk 0:00:23.4]} 57... cxb4 {[%clk 0:00:07.1]} 58.
cxb4 {[%clk 0:00:25.3]} 58... Kf6 {[%clk 0:00:05.6]} 59. Ke4 {[%clk 0:00:25.9]}
59... Kg5 {[%clk 0:00:05.2]} 60. Kxe5 {[%clk 0:00:26.8]} 60... Kg4 {[%clk
0:00:06.2]} 61. b5 {[%clk 0:00:27.7]} 61... f3 {[%clk 0:00:07.3]} 62. a4 {[%clk
0:00:28.7]} 62... f2 {[%clk 0:00:07.6]} 63. Bc4 {[%clk 0:00:29.6]} 63... Kf3
{[%clk 0:00:07.8]} 64. a5 {[%clk 0:00:30.6]} 64... Ke3 {[%clk 0:00:09.5]} 65. b6
{[%clk 0:00:31]} 65... axb6 {[%clk 0:00:10.7]} 66. axb6 {[%clk 0:00:32.6]} 66...
Kd2 {[%clk 0:00:12.1]} 67. b7 {[%clk 0:00:33]} 67... Kc3 {[%clk 0:00:14]} 68.
Ba6 {[%clk 0:00:33.3]} 68... Kb4 {[%clk 0:00:14.2]} 69. b8=Q+ {[%clk 0:00:34]}
69... Kc3 {[%clk 0:00:15.2]} 70. Qb5 {[%clk 0:00:34.4]} 70... f1=Q {[%clk
0:00:15.4]} 71. Qxf1 {[%clk 0:00:34.4]} 71... Kb4 {[%clk 0:00:16.2]} 72. Qc4+
{[%clk 0:00:34.9]} 72... Ka3 {[%clk 0:00:16.5]} 73. Qb5 {[%clk 0:00:35.9]} 73...
Ka2 {[%clk 0:00:17.1]} 74. Qb4 {[%clk 0:00:37.4]} 74... Ka1 {[%clk 0:00:17.4]}
75. Kd4 {[%clk 0:00:38]} 75... Ka2 {[%clk 0:00:18.4]} 76. Kc3 {[%clk 0:00:39.9]}
76... Ka1 {[%clk 0:00:19.1]} 77. Qb2# {[%clk 0:00:41.8]} 1-0